Cogmind - Beta 15 @@@ ROGUE MODE // 2025.09.02 @ 12:14:01 Player: lepire Result: Self-destructed Performance ------------- Evolutions (3) 1500 Regions Visited (5) 1000 Robots Destroyed (26) 130 Value Destroyed (560) 560 Prototype IDs (0) 0 Alien Tech Used (0) 0 Bonus (0) 0 TOTAL SCORE: 3190 Bonus ------- None Cogmind --------- Core Integrity 479/700 Matter 300/300 Energy 84/100 System Corruption 0% Temperature Cool (21) Movement Flying (32) Location -7/Lower Caves Parts ------- > --- POWER (1) -------- (None) > --- PROPULSION (4) --- Cesium-ion Thruster Cesium-ion Thruster > --- UTILITY (6) ------ Small Storage Unit Visual Processing Unit Improved Terrain Scan Processor Transmission Jammer Hacking Suite > --- WEAPON (2) ------- (None) > --- INVENTORY (8) ---- Micro Nuclear Core Cesium-ion Thruster Weight Redist. System Structural Scanner Machine Analyzer IFF Parser Advanced ECM Suite Peak State ------------ > --- POWER ------------ Micro Nuclear Core > --- PROPULSION ------- Cesium-ion Thruster Cesium-ion Thruster Cesium-ion Thruster Cesium-ion Thruster > --- UTILITY ---------- Small Storage Unit Visual Processing Unit Improved Terrain Scanner Improved Terrain Scan Processor Transmission Jammer Hacking Suite > --- WEAPON ----------- Lightning Gun Makeshift Laser > --- INVENTORY -------- Micro Nuclear Core Cesium-ion Thruster Weight Redist. System Structural Scanner Machine Analyzer IFF Parser Heavy Assault Rifle [Rating: 42] Favorites ----------- Power Ion Engine Engine Ion Engine Power Core Light Nuclear Core Propulsion Aluminum Leg Leg Aluminum Leg Wheel Wheel Hover Unit Airjet Flight Unit Cesium-ion Thruster Utility Small Storage Unit Device ECM Suite Storage Small Storage Unit Processor Visual Processing Unit Hackware Hacking Suite Protection Utility Shielding Weapon Medium Laser Energy Gun Medium Laser Ballistic Gun Heavy Assault Rifle Launcher Grenade Launcher Special Weapon Mining Laser Build | -11 -10 -9 -8 -7 -7 ------- Run | Yrd Mat Mat Mat Fac Low Slots Evolved 6 | . . 2 2 2 . Power . | . . . . . . Propulsion 2 | . . . . 2 . Utility 4 | . . 2 2 . . Weapon . | . . . . . . Parts Attached 40 | 7 2 12 6 10 3 Power 5 | 1 . 2 1 1 . Engine 3 | 1 . 2 . . . Core 2 | . . . 1 1 . Reactor . | . . . . . . Propulsion 13 | 2 . 4 1 5 1 Treads . | . . . . . . Leg 2 | 2 . . . . . Wheel 1 | . . 1 . . . Hover 4 | . . 3 1 . . Flight 6 | . . . . 5 1 Utility 13 | 2 . 4 3 3 1 Device 7 | 1 . 3 . 2 1 Storage 1 | 1 . . . . . Processor 2 | . . 1 . 1 . Hackware 1 | . . . 1 . . Protection 2 | . . . 2 . . Artifact . | . . . . . . Weapon 9 | 2 2 2 1 1 1 Energy Gun 6 | 2 1 1 . 1 1 Energy Cannon . | . . . . . . Ballistic Gun 1 | . . . 1 . . Ballistic Cannon . | . . . . . . Launcher 1 | . . 1 . . . Special Weapon 1 | . 1 . . . . Impact Weapon . | . . . . . . Slashing Weapon . | . . . . . . Piercing Weapon . | . . . . . . Special Melee Weapon . | . . . . . . Unidentified Prototypes . | . . . . . . Parts Lost 14 | . . 5 2 1 6 Power 2 | . . 1 . . 1 Propulsion 5 | . . 1 1 . 3 Utility 4 | . . 2 . 1 1 Weapon 3 | . . 1 1 . 1 Highest Loss Streak 6 | . . 3 2 1 6 To Critical Strikes . | . . . . . . Average Backups 6 | 1 6 6 7 7 7 Power . | . 1 . . . 1 Propulsion 1 | . 1 1 3 1 1 Utility 2 | . 2 2 2 3 4 Weapon 1 | . 1 2 1 1 . Tool/Special . | . . . . . . Unused Backups 12 | . 3 . 3 1 5 Power 1 | . . . . . 1 Propulsion 2 | . 1 . . 1 . Utility 8 | . 2 . 2 . 4 Weapon 1 | . . . 1 . . Tool/Special . | . . . . . . Average Slot Usage (%) 94 | . 100 98 83 86 86 Engine 8 | . 14 10 3 . . Core 2 | . . . 6 7 6 Leg 12 | . 28 13 . . . Hover 4 | . . 7 18 . . Flight 6 | . . . . 28 28 Device 19 | . 14 27 18 14 11 Storage 10 | . 14 11 9 7 7 Processor 5 | . . 4 9 13 15 Hackware 2 | . . . 4 7 7 Energy Gun 15 | . 24 18 4 3 6 Special Weapon 1 | . 3 2 1 . . Peak Build Rating 42 | 7 9 18 21 36 42 Average Rating 16 | 4 7 14 18 30 36 On Entrance 14 | . 7 9 16 20 35 Naked Turns . | . . . . . . Heaviest Build 20 | 15 16 20 19 18 17 Greatest Support 21 | 20 20 20 16 20 21 Greatest Overweight (x) 2 | 2 . 1 1 . . Average Overweight (x) . | . . . . . . Largest Inventory Capacity 8 | 8 8 8 8 8 8 Average Capacity 7 | 7 8 8 8 8 8 Most Carried 8 | 4 8 8 8 8 8 Average Carried 6 | 1 6 6 7 7 7 Final Capacity 8 | 8 8 8 8 8 8 Final Carried 8 | 3 8 7 8 8 7 Class Distribution -------------------- 67% | Mutant 9% | Infiltrator-Mutant 9% | Scout 9% | Infiltrator-Sprinter 3% | Sprinter Dominant Class ---------------- Mutant | -10/Materials Mutant | -9/Materials Infiltrator-Mutant | -8/Materials Infiltrator-Sprinter | -7/Factory Scout | -7/Lower Caves Resources | -11 -10 -9 -8 -7 -7 ----------- Run | Yrd Mat Mat Mat Fac Low Matter Collected 877 | 229 71 225 61 35 256 Remotely . | . . . . . . Salvage Created 881 | 10 99 528 209 35 . Parts 64 | 3 9 37 11 4 . Haulers Intercepted . | . . . . . . Recyclers Shooed 5 | . 2 3 . . . Parts Field Recycled . | . . . . . . Retrieved Matter . | . . . . . . Parts Self-Destructed 3 | . . . . . 3 Prevented . | . . . . . . Kills | -11 -10 -9 -8 -7 -7 ------- Run | Yrd Mat Mat Mat Fac Low Combat Hostiles Destroyed 17 | . 2 10 4 1 . Guns 15 | . 2 9 3 1 . AOE 1 | . . 1 . . . Classes Destroyed 8 | 1 2 3 . 2 . Builder 1 | . . . . 1 . Tunneler 3 | 1 . 2 . . . Recycler 3 | . . 2 1 . . Drone 1 | . . . . 1 . Watcher 3 | . 1 2 . . . Swarmer 6 | . . 4 2 . . Grunt 5 | . 2 3 . . . Sentry 5 | . . 3 2 . . Best Kill Streak 6 | 1 1 6 3 1 . Combat Bots Only 5 | . 1 5 2 1 . Max Kills in Single Turn 2 | 1 1 2 1 1 . Gunslinging . | . . . . . . Exploded 1 | . . 1 . . . Melee . | . . . . . . Uniques/NPCs Destroyed . | . . . . . . Combat | -11 -10 -9 -8 -7 -7 -------- Run | Yrd Mat Mat Mat Fac Low Hostile Shots Fired 155 | . 7 59 22 24 43 Missed 54 | . 1 14 9 12 18 Hits 101 | . 6 45 13 12 25 Projectile 101 | . 6 45 13 12 25 Critical Strikes 5 | . . 4 . . 1 Damage Taken 1427 | . 112 584 187 113 431 Core 423 | . 39 135 28 28 193 Absorbed by Shields . | . . . . . . Core Remaining (%) 86 | 100 84 66 94 . . Volleys Fired 95 | 4 13 41 17 8 12 Largest 2 | 2 2 2 2 1 1 Hottest 121 | 100 100 121 106 55 50 Shots Fired 137 | 7 17 67 26 8 12 Gun 128 | 7 12 64 25 8 12 Cannon . | . . . . . . Launcher 2 | . . 2 . . . Special 7 | . 5 1 1 . . Kinetic 9 | . . . 4 5 . Thermal 123 | 7 17 65 22 . 12 Explosive 2 | . . 2 . . . Electromagnetic 3 | . . . . 3 . Robot Hit Streak 8 | 5 6 7 8 8 2 Robot Miss Streak 6 | 2 1 3 1 3 6 Penetration Max . | . . . . . . Secondary Targets . | . . . . . . Shots Hit Robots 77 | 5 9 36 20 4 3 Core Hits 39 | 1 7 22 7 2 . Critical Kills . | . . . . . . Critical Parts Destroyed . | . . . . . . Critical Strikes 7 | . 2 3 2 . . Burn 7 | . 2 3 2 . . Melee Attacks . | . . . . . . Impact . | . . . . . . Slashing . | . . . . . . Piercing . | . . . . . . Sneak Attacks . | . . . . . . Combat Hostiles . | . . . . . . Follow-up Attacks . | . . . . . . Damage Inflicted 1220 | 62 116 635 277 80 50 Guns 1072 | 62 116 487 277 80 50 Cannons . | . . . . . . Explosions 148 | . . 148 . . . Melee . | . . . . . . Ramming . | . . . . . . Kinetic 104 | . . . 58 46 . Thermal 934 | 62 116 487 219 . 50 Explosive 148 | . . 148 . . . Electromagnetic 34 | . . . . 34 . Impact . | . . . . . . Slashing . | . . . . . . Piercing . | . . . . . . Highest Corruption . | . . . . . . Average Corruption . | . . . . . . Corruption Purged . | . . . . . . Corruption Blocked . | . . . . . . Overload Shots . | . . . . . . Overflow Damage 13 | . . 13 . . . Projectiles . | . . . . . . Explosions 13 | . . 13 . . . Melee . | . . . . . . Knockbacks . | . . . . . . Impact . | . . . . . . Kinetic . | . . . . . . Secondary . | . . . . . . Self-Inflicted Damage 24 | . . 24 . . . Shots 1 | . . 1 . . . Rammed . | . . . . . . Targets Rammed . | . . . . . . Kicked . | . . . . . . Crushed . | . . . . . . Highest Temperature 344 | 78 96 301 344 24 41 Average Temperature 72 | 30 23 75 156 12 26 Received Heat Transfer 399 | . 36 246 54 27 36 Effects 2 | . . . 2 . . Interference 2 | . . . 2 . . Siege Activations . | . . . . . . Martial Activations . | . . . . . . Shielding Activations . | . . . . . . Robots Disrupted . | . . . . . . Combat Hostiles . | . . . . . . Robots Corrupted . | . . . . . . Combat Hostiles . | . . . . . . Parts Fried . | . . . . . . Impact Corruptions . | . . . . . . Robots Melted 1 | . . . 1 . . Combat Hostiles 1 | . . . 1 . . Parts Melted 9 | . 1 3 5 . . Heat Transferred 2997 | 185 481 1480 740 . 111 Parts Sabotaged . | . . . . . . Parts Stolen . | . . . . . . Parts Stripped . | . . . . . . Power Chain Reactions . | . . . . . . Alert | -11 -10 -9 -8 -7 -7 ------- Run | Yrd Mat Mat Mat Fac Low Maximum Alert Level . | . . . . . . Low Security (%) 100 | 100 100 100 100 100 . Level 1 . | . . . . . . Level 2 . | . . . . . . Level 3 . | . . . . . . Level 4 . | . . . . . . Level 5 . | . . . . . . High Security . | . . . . . . Max Security . | . . . . . . Peak Influence 113 | . 34 113 50 20 . Initial 12 | . . . 12 2 . Average 11 | . 4 20 15 2 . Influence Increases 695 | 5 91 332 137 85 45 Destroy 0b10 Robot/C 320 | . 40 200 80 . . Destroy 0b10 Robot/NC 55 | 5 5 30 5 10 . Destroy Leader 106 | . 12 64 30 . . Successful Hack 41 | . 29 6 6 . . Destroy Structure 23 | . 5 17 1 . . Partial Spotted 90 | . . . 15 75 . Lose Combat Pursuer 60 | . . 15 . . 45 Influence Decreases 695 | 5 91 302 162 90 45 Entered New Map 21 | . . . 18 3 . Time Decay 505 | 5 91 175 124 80 30 Lost Part 82 | . . 40 20 7 15 Purge Threat 87 | . . 87 . . . Squads Dispatched 10 | . 1 3 1 5 . Investigation 4 | . . 1 . 3 . Extermination 2 | . . . . 2 . Reinforcement 4 | . 1 2 1 . . Assault . | . . . . . . Garrison . | . . . . . . Intercept . | . . . . . . Searches Triggered . | . . . . . . Construction Impeded . | . . . . . . Haulers Reinforced . | . . . . . . Active Scanning Responses . | . . . . . . Cargo Convoy Interrupts . | . . . . . . Stealth | -11 -10 -9 -8 -7 -7 --------- Run | Yrd Mat Mat Mat Fac Low Distress Signals 2 | . . 2 . . . Communications Jammed 15 | . . . . 15 . Distress Signals . | . . . . . . Times Spotted 62 | . 8 18 13 16 7 Peak Tracking Total 5 | . 3 5 5 4 4 Tactical Retreats 10 | . . 2 1 5 2 Traps | -11 -10 -9 -8 -7 -7 ------- Run | Yrd Mat Mat Mat Fac Low Traps Triggered 3 | . 1 1 . 1 . Indirectly . | . . . . . . Trap Hack Attempts . | . . . . . . Triggered . | . . . . . . Disarmed . | . . . . . . Reprogrammed . | . . . . . . Reused . | . . . . . . Traps Extracted . | . . . . . . Installed . | . . . . . . Triggered . | . . . . . . Machines | -11 -10 -9 -8 -7 -7 ---------- Run | Yrd Mat Mat Mat Fac Low Machines Disabled . | . . . . . . Max in Single Turn . | . . . . . . Machines Repaired . | . . . . . . Machines Dismantled . | . . . . . . Machines Sabotaged . | . . . . . . Overloaded Fab Kills . | . . . . . . Hacking | -11 -10 -9 -8 -7 -7 --------- Run | Yrd Mat Mat Mat Fac Low Machines Accessed 17 | . 5 4 2 6 . Terminals 10 | . 4 3 2 1 . Fabricators 2 | . . . . 2 . Repair Stations 1 | . . . . 1 . Recycling Units 2 | . 1 . . 1 . Scanalyzers 2 | . . 1 . 1 . Garrison Access . | . . . . . . Total Hacks 45 | . 13 14 4 14 . Successful 25 | . 8 7 3 7 . Failed 20 | . 5 7 1 7 . Catastrophic 3 | . 1 1 . 1 . Database Lockouts . | . . . . . . Manual 9 | . 2 5 2 . . Terminals 29 | . 12 11 4 2 . Fabricators 4 | . . . . 4 . Repair Stations 2 | . . . . 2 . Recycling Units 4 | . 1 . . 3 . Scanalyzers 6 | . . 3 . 3 . Garrison Access . | . . . . . . Terminal Hacks 15 | . 7 5 3 . . Robot Analysis 1 | . 1 . . . . Alert Level 2 | . . 2 . . . Unreport Threat 1 | . . 1 . . . Locate Traps 2 | . 1 . 1 . . Dispatch Records 1 | . . 1 . . . Maintenance Status 1 | . 1 . . . . Zone Layout 7 | . 4 1 2 . . Fabricator Hacks 4 | . . . . 4 . Network Status 2 | . . . . 2 . Load Schematic 1 | . . . . 1 . Build 1 | . . . . 1 . Repair Station Hacks . | . . . . . . Recycling Unit Hacks 3 | . 1 . . 2 . Report Inventory 2 | . 1 . . 1 . Retrieve Components 1 | . . . . 1 . Scanalyzer 3 | . . 2 . 1 . Insert Component 2 | . . 1 . 1 . Analyze 1 | . . 1 . . . Garrison Access Hacks . | . . . . . . Unauthorized Hacks . | . . . . . . Terminals . | . . . . . . Fabricators . | . . . . . . Repair Stations . | . . . . . . Recycling Units . | . . . . . . Scanalyzers . | . . . . . . Garrison Access . | . . . . . . Data Cores Recovered . | . . . . . . Used . | . . . . . . Hacking Detections 12 | . 4 3 . 5 . Full Trace Events 4 | . 1 1 . 2 . Feedback Events . | . . . . . . Feedback Blocked . | . . . . . . Robot Schematics Acquired . | . . . . . . Robots Built . | . . . . . . Authchips . | . . . . . . Time . | . . . . . . Total Robot Build Rating . | . . . . . . Part Schematics Acquired 1 | . . 1 . . . Parts Built 2 | . . . . 2 . Authchips . | . . . . . . Time 73 | . . . . 73 . Total Part Build Rating 6 | . . . . 6 . Parts Repaired . | . . . . . . Time . | . . . . . . Parts Recycled . | . . . . . . Recycled Matter . | . . . . . . Retrieved Matter . | . . . . . . Retrieved Components 3 | . . . . 3 . Parts Scanalyzed 1 | . . 1 . . . Part Schematics Acquired 1 | . . 1 . . . Parts Damaged . | . . . . . . Bothacking | -11 -10 -9 -8 -7 -7 ------------ Run | Yrd Mat Mat Mat Fac Low Used RIF Installer . | . . . . . . Robots Hacked . | . . . . . . Non-combat . | . . . . . . Combat . | . . . . . . Robot Hacks Applied . | . . . . . . Relay Couplers Released . | . . . . . . Fabnet Peak Effective % . | . . . . . . Robots Rewired . | . . . . . . Allies Hacked . | . . . . . . Hacks Repelled . | . . . . . . Allies | -11 -10 -9 -8 -7 -7 -------- Run | Yrd Mat Mat Mat Fac Low Total Allies . | . . . . . . Largest Group . | . . . . . . Highest-Rated Group . | . . . . . . Highest-Rated Ally . | . . . . . . Total Orders . | . . . . . . Ally Attacks . | . . . . . . Total Damage . | . . . . . . Kills . | . . . . . . Allies Corrupted . | . . . . . . Allies Melted . | . . . . . . Intel | -11 -10 -9 -8 -7 -7 ------- Run | Yrd Mat Mat Mat Fac Low Active Infowar (turns) 2874 | 6 806 1130 279 537 116 Optics 1383 | . . 458 272 537 116 Terrain 1361 | . . 1109 . 170 82 Structural 517 | . . 1 279 237 . Seismic 1358 | 6 806 546 . . . Jamming 77 | . . . . 48 29 ECM 421 | . . 98 146 177 . Robot Analysis Total 1 | . 1 . . . . Derelict Logs Recovered . | . . . . . . Drone Launches . | . . . . . . Drone Recoveries . | . . . . . . Exploration | -11 -10 -9 -8 -7 -7 ------------- Run | Yrd Mat Mat Mat Fac Low Turns Passed 2970 | 88 806 1130 293 537 116 Spaces Moved 3714 | 50 547 992 249 1561 315 Core 9 | 9 . . . . . Treads . | . . . . . . Legs 955 | 41 547 367 . . . Wheels 70 | . . 70 . . . Hover 808 | . . 555 249 4 . Flight 1872 | . . . . 1557 315 Fastest Speed 26 | 50 120 56 56 26 26 Average Speed 58 | 127 120 82 61 26 26 Slowest Speed 190 | 190 120 190 116 56 29 Overloaded Moves . | . . . . . . Propulsion Burnouts . | . . . . . . Robots Hopped 5 | . . . . 5 . Potential Cave-ins . | . . . . . . Cave-ins Triggered . | . . . . . . Exploration Rate (%) 37 | 4 74 52 23 34 36 Regions Visited 5 Branch Regions 1 Pre-discovered Areas . | . . . . . . Known Exits Taken . | . . . . . . Unknown Exits Taken 5 | 1 1 1 1 1 . Scrap Searched 9 | . . . . . 9 Spaces Dug 7 | . 5 1 1 . . Terrain Destroyed 21 | . 5 15 1 . . Melee . | . . . . . . Projectile 7 | . 5 1 1 . . AOE 14 | . . 14 . . . Terrain Rammed . | . . . . . . Walls Destroyed . | . . . . . . Machines Disabled . | . . . . . . Actions | -11 -10 -9 -8 -7 -7 --------- Run | Yrd Mat Mat Mat Fac Low Total 4340 | 64 670 1227 364 1678 337 Wait 400 | . 93 166 69 72 . Move 3699 | 49 546 991 248 1550 315 Hop 5 | . . . . 5 . Pick Up 39 | 4 8 7 8 10 2 Fast Attach 9 | 6 . . 2 . 1 Attach 22 | 1 . 8 4 7 2 Detach 9 | . . . 4 4 1 Swap 36 | . 6 12 4 13 1 Drop 26 | . 4 2 8 9 3 Fire 95 | 4 13 41 17 8 12 Melee . | . . . . . . Ram . | . . . . . . Kick . | . . . . . . Crush . | . . . . . . Escape Stasis . | . . . . . . Rewire . | . . . . . . Trap . | . . . . . . Miscellaneous . | . . . . . . Route ------- -11/Scrapyard -10/Materials (discovered 3 exits: *Mat x2 / [*Min]) -9/Materials -8/Materials -7/Factory (discovered 2 exits: [*Low x2]) -7/Lower Caves History --------- Turn | Location | Event 15 | -11/Scrapyard | Discovered new exit (range 16) 89 | -11/Scrapyard | Entered Materials 333 | -10/Materials | Build established: Mutant 365 | -10/Materials | Discovered new exit (range 9) 441 | -10/Materials | Discovered new exit (range 6) 840 | -10/Materials | Discovered new exit (range 16) 895 | -10/Materials | Entered another Materials area 895 | -9/Materials | Evolved 2 slots: Utility x2 1567 | -9/Materials | Lost 3 parts (1p1n1w) 1936 | -9/Materials | Discovered new exit (range 3) 2025 | -9/Materials | Entered another Materials area 2025 | -8/Materials | Evolved 2 slots: Utility x2 2316 | -8/Materials | Discovered new exit (range 3) 2318 | -8/Materials | Entered Factory 2318 | -7/Factory | Evolved 2 slots: Propulsion x2 2334 | -7/Factory | Discovered new exit (range 8) 2526 | -7/Factory | Discovered new exit (range 4) 2592 | -7/Factory | Fabricated Imp. Terrain Scanner? 2855 | -7/Factory | Entered Lower Caves 2901 | -7/Lower Caves | Spotted B-75 Beast 2971 | -7/Lower Caves | Attracted the attention of an 0b10 checkpoint 2971 | -7/Lower Caves | Self-destructed Last Messages --------------- 02909_ Dropped Cesium-ion Thruster. 02911_ Dropped Hvy. Assault Rifle. 02911_ Dropped Lightning Gun. 02912_ Acquired Adv. ECM Suite. 02913_ Acquired Cesium-ion Thruster. 02918_ Searching scrap... 02918_ Found Matter Filter. 02918_ Found 65 Matter. 02919_ Acquired 10 matter. 02931_ Xenon Bombardment Thruster destroyed. 02946_ Imp. Terrain Scanner destroyed. 02954_ S-27 Virus destroyed. 02958_ VTOL Module fries itself beyond repair. 02960_ Cesium-ion Thruster destroyed. 02964_ VTOL Module fries itself beyond repair. 02966_ Mic. Nuclear Core destroyed. 02969_ Cesium-ion Thruster destroyed. 02969_ Mak. Laser destroyed. 02971_ Y-54 Guardian: "INTERCEPTING UNREGISTERED DERELICT." Map ----- +----------------------------------------------------+ | ???#??????#??????#???????????????????????????????? | | ???#?????####??#??#??????????????????????????????? | | ????#??##########???#########?#????#?????????????? | | ??????## ### ##?## ##???????????????????? | | ??????# # ## ### #??????#????????????? | | #????## #???????????????????? | | ????### #???????????????????? | | #???## ###### #???#???????????????? | | ?#?## # ###### #???????????????????? | | ????# % ###??#??????????????? | | ????# # ! " " "" ## ##?#???????????????? | | ??### ##### " """ ## #?#?##?#???????????? | | ???#### #######!"" "" # #??????????????????? | | ###??###### #%! " #% ###?????????????????? | | ##?????# """ # ##??#?????????#??????? | | #?##?## [[""""" #???#????????????????? | | ###### "" ####?#?#??##????????????? | | # ## ##?#?##????#????????????? | | # ########??##???????????????? | | ?? ?## !"#### ##?##??#????????????? | | ??##?# %BB= #?###?#?????????????? | | ?????## BB ###??#???????????????? | | ???#?## ## ##;;# ##????#??????????????? | | ????#??# ## ### ####;# % ###?#?##???#????????? | | ???#?#?# "####?######## ###?????#?????????? | | #?????# ##?#?# [ !|# @ ###???#????????????? | | ?######" #####/! / ##% ##?##??????????????? | | ?# ###/==#### ###????#???????????? | | ?# ###!!%#??##s* #?###?????????????? | | ?# # ### # ##+###??## #?????????????????? | | ?# ## #?# #####Y #???#?????????????? | | ?# ###### ###?# ##??#??#??????????? | | ?# ?#?## ##?# ##?#???????????????? | | ?# ??## ### ##????#????????????? | | #####??### ##?????#???????????? | | ####????##### # #?????????????????? | | ?????????# # ##????????#?#??????? | | ?????????## ## ## ##?????????????#????? | | ????#??#### ####### ## ##??????????#????????? | | ??????## ##???# ### #????????##??????????? | | ????#?# #???# #?###? ??????????????????? | | #?????# #??## ??? ???????#???????????? | | ??????## ## ???#????????????????? | | ##???### ? ?????? ???????????? | | ??????## ### ???????????????????? | | ???????## #?? ## ????#??????????????? | | ????????## ##?# ###? ?????????????????????? | | ??#??? ??## #### ##?#? ???? ????????????????? | | ????#?????# ##?###???? ?? ??????????????????? | | ?#????????# ##?????# ????????????????????? | +----------------------------------------------------+ Best States ------------- Heat Dissipation 34 Energy Generation 15 Energy Capacity 250 Matter Stores 300 Matter Capacity 300 Sight Range 18 Terrain Scan Range 16 Terrain Scan Density 110 ECM Strength 1 Jamming Range 12 Armor Coverage 150 Utility Shielding 33 Evasion (%) 64 Offensive Hacking 10 Item Schematics ----------------- Imp. Terrain Scanner | -9/Materials | Scanalyzed Robot Schematics ------------------ None Fabricated ------------ Imp. Terrain Scanner | x2 | -7/Factory Repaired ---------- Nothing Alien Tech Used ----------------- None Achievements -------------- Party Time Total Silence Challenges ------------ None Game ------ Seed InsulatedEncryptedActivator Manual? 0 Play Time 01:05:52 Cumulative 32.5 hours Start 2025.09.02 @ 10:58:31 End 2025.09.02 @ 12:14:01 Sessions 1 Manual Loads 0 Difficulty Rogue Special Mode None Game No. 41 Rogue 11 Adventurer 30 Explorer 0 Win Type - Total 0 Types 0/0/0/0/0/0/0/0/0/0 Lore% 14 Gallery% 23 Achievement% 22 Wizard Run 0 Options --------- Layout 1 ASCII 0 Keyboard 1 Movement Arrows Keybinds 0 Fullscreen 1 Font 24/Terminus Map View 50x35 Zoom Use 0% Tactical HUD 1 Map Filters NONE Filters NONE Steam 1 RUN: deeaac84-8003-422f-9f73-129ac10afdb7